fUST/lending_fUST_20250812
["ID","MTS","AMOUNT","RATE_DAILY","PERIOD"]
[378656683,1754945454832,-460.0,0.00019726,2]
[378656684,1754945454841,-679.71,0.00019726,2]
[378656685,1754945454852,-460.0,0.00019726,2]
[378656686,1754945454862,-460.0,0.00019726,2]
[378656687,1754945454871,-460.0,0.00019726,2]
[378656688,1754945454880,-460.0,0.00019726,2]
[378656689,1754945454889,-460.0,0.00019726,2]
[378656690,1754945454898,-856.32,0.00019726,2]
[378656691,1754945454907,-172.23011884,0.00019726,2]
[378656692,1754945454916,-460.0,0.00019726,2]
[378656693,1754945454925,-513.37,0.00019726,2]
[378656694,1754945454934,-551.67,0.00019726,2]
[378656695,1754945454943,-675.33,0.00019726,2]
[378656696,1754945454952,-500.15,0.00019726,2]
[378656697,1754945454962,-460.0,0.00019726,2]
[378656698,1754945454972,-460.0,0.00019726,2]
[378656699,1754945454983,-460.0,0.00019726,2]
[378656700,1754945454994,-594.54,0.00019726,2]
[378656701,1754945455004,-460.0,0.00019726,2]
[378656702,1754945455016,-460.0,0.00019726,2]
[378656703,1754945455025,-460.0,0.00019726,2]
[378656704,1754945455036,-772.93,0.00019726,2]
[378656705,1754945455047,-460.0,0.00019726,2]
[378656706,1754945455057,-456.75087291,0.00019726,2]
[378656707,1754945455069,-460.0,0.00019726,2]
[378656708,1754945455079,-4603.73,0.00019726,2]
[378656709,1754945455090,-460.0,0.00019726,2]
[378656710,1754945455100,-460.0,0.00019726,2]
[378656711,1754945455109,-460.0,0.00019726,2]
[378656712,1754945455121,-3358.5,0.00019726,2]
[378656713,1754945455131,-474.39,0.00019726,2]
[378656714,1754945455140,-619.48,0.00019726,2]
[378656715,1754945455150,-460.0,0.00019726,2]
[378656716,1754945455163,-1123.35,0.00019726,2]
[378656717,1754945455172,-460.0,0.00019726,2]
[378656718,1754945455181,-523.05734885,0.00019726,2]
[378656719,1754945455190,-460.0,0.00019726,2]
[378656720,1754945455201,-553.92,0.00019726,2]
[378656721,1754945455210,-460.0,0.00019726,2]
[378656722,1754945455219,-460.0,0.00019726,2]
[378656723,1754945455228,-2454.43,0.00019726,2]
[378656724,1754945455237,-532.63,0.00019726,2]
[378656725,1754945455246,-917.86,0.00019726,2]
[378656726,1754945455255,-460.0,0.00019726,2]
[378656727,1754945455264,-625.58,0.00019726,2]
[378656728,1754945455273,-460.0,0.00019726,2]
[378656729,1754945455282,-460.0,0.00019726,2]
[378656730,1754945455291,-670.78,0.00019726,2]
[378656731,1754945455300,-460.0,0.00019726,2]
[378656732,1754945455309,-460.0,0.00019726,2]
[378656733,1754945455319,-1595.07,0.00019726,2]
[378656734,1754945455328,-460.0,0.00019726,2]
[378656735,1754945455337,-460.0,0.00019726,2]
[378656736,1754945455347,-1407.26,0.00019726,2]
[378656737,1754945455357,-460.0,0.00019726,2]
[378656738,1754945455366,-460.0,0.00019726,2]
[378656739,1754945455376,-460.0,0.00019726,2]
[378656740,1754945455386,-460.0,0.00019726,2]
[378656741,1754945455395,-270.53943407,0.00019726,2]
[378656742,1754945455405,-460.0,0.00019726,2]
[378656743,1754945455415,-609.86,0.00019726,2]
[378656744,1754945455424,-460.0,0.00019726,2]
[378656745,1754945455434,-966.66,0.00019726,2]
[378656746,1754945455443,-460.0,0.00019726,2]
[378656747,1754945455453,-460.0,0.00019726,2]
[378656748,1754945455463,-530.83,0.00019726,2]
[378656749,1754945455473,-151.0,0.00019726,2]
[378656750,1754945455482,-460.0,0.00019726,2]
[378656751,1754945455492,-460.0,0.00019726,2]
[378656752,1754945455503,-460.0,0.00019726,2]
[378656753,1754945455513,-466.5,0.00019726,2]
[378656754,1754945455525,-463.9,0.00019726,2]
[378656755,1754945455535,-468.7,0.00019726,2]
[378656756,1754945455545,-547.26,0.00019726,2]
[378656757,1754945455555,-536.01,0.00019726,2]
[378656758,1754945455564,-460.0,0.00019726,2]
[378656759,1754945455574,-647.57,0.00019726,2]
[378656760,1754945455583,-570.48378018,0.00019726,2]
[378656761,1754945455593,-460.0,0.00019726,2]
[378656762,1754945455602,-460.0,0.00019726,2]
[378656763,1754945455612,-460.0,0.00019726,2]
[378656764,1754945455621,-1769.16,0.00019726,2]
[378656765,1754945455630,-460.0,0.00019726,2]
[378656766,1754945455640,-681.77,0.00019726,2]
[378656767,1754945455649,-460.0,0.00019726,2]
[378656768,1754945455659,-460.0,0.00019726,2]
[378656769,1754945455670,-460.0,0.00019726,2]
[378656770,1754945455681,-472.901425,0.00019726,2]
[378656771,1754945455692,-888.35,0.00019726,2]
[378656772,1754945455702,-460.0,0.00019726,2]
[378656773,1754945455712,-2167.58,0.00019726,2]
[378656774,1754945455722,-460.0,0.00019726,2]
[378656775,1754945455732,-460.0,0.00019726,2]
[378656776,1754945455742,-977.15,0.00019726,2]
[378656777,1754945455752,-944.5,0.00019726,2]
[378656778,1754945455761,-460.0,0.00019726,2]
[378656779,1754945455770,-460.0,0.00019726,2]
[378656780,1754945455780,-553.25,0.00019726,2]
[378656781,1754945455790,-757.42,0.00019726,2]
[378656782,1754945455799,-574.21,0.00019726,2]
[378656783,1754945455809,-460.0,0.00019726,2]
[378656784,1754945455820,-151.0,0.00019726,2]
[378656785,1754945455830,-460.0,0.00019726,2]
[378656786,1754945455843,-254.20001251,0.00019726,2]
[378656787,1754945455853,-837.36,0.00019726,2]
[378656788,1754945455863,-1047.5,0.00019726,2]
[378656789,1754945455872,-460.0,0.00019726,2]
[378656790,1754945455882,-460.0,0.00019726,2]
[378656791,1754945455893,-460.0,0.00019726,2]
[378656792,1754945455903,-151.0,0.00019726,2]
[378656793,1754945455913,-236.56178222,0.00019726,2]
[378656794,1754945455922,-460.0,0.00019726,2]
[378656795,1754945455932,-1818.61,0.00019726,2]
[378656796,1754945455944,-461.54,0.00019726,2]
[378656797,1754945455962,-460.0,0.00019726,2]
[378656798,1754945455973,-1104.61,0.00019726,2]
[378656799,1754945455982,-1336.85,0.00019726,2]
[378656800,1754945455992,-460.0,0.00019726,2]
[378656801,1754945456002,-460.0,0.00019726,2]
[378656802,1754945456013,-460.0,0.00019726,2]
[378656803,1754945456023,-151.0,0.00019726,2]
[378656804,1754945456033,-3284.18,0.00019726,2]
[378656805,1754945456042,-1186.11,0.00019726,2]
[378656806,1754945456052,-1266.67,0.00019726,2]
[378656807,1754945456063,-460.0,0.00019726,2]
[378656808,1754945456078,-675.57,0.00019726,2]
[378656809,1754945456087,-460.0,0.00019726,2]
[378656810,1754945456097,-460.0,0.00019726,2]
[378656811,1754945456107,-596.19,0.00019726,2]
[378656812,1754945456117,-460.0,0.00019726,2]
[378656813,1754945456126,-449.84872993,0.00019726,2]
[378656814,1754945456136,-546.29494854,0.00019726,2]
[378656815,1754945456146,-460.0,0.00019726,2]
[378656816,1754945456158,-460.0,0.00019726,2]
[378656817,1754945456168,-460.0,0.00019726,2]
[378656818,1754945456178,-460.0,0.00019726,2]
[378656819,1754945456187,-460.0,0.00019726,2]
[378656820,1754945456197,-460.0,0.00019726,2]
[378656821,1754945456207,-460.0,0.00019726,2]
[378656822,1754945456217,-460.0,0.00019726,2]
[378656823,1754945456226,-460.0,0.00019726,2]
[378656824,1754945456238,-814.02,0.00019726,2]
[378656825,1754945456248,-460.0,0.00019726,2]
[378656826,1754945456257,-705.17,0.00019726,2]
[378656827,1754945456267,-460.0,0.00019726,2]
[378656828,1754945456276,-460.0,0.00019726,2]
[378656829,1754945456286,-151.0,0.00019726,2]
[378656830,1754945456295,-663.06,0.00019726,2]
[378656831,1754945456305,-151.0,0.00019726,2]
[378656832,1754945456315,-443.34842034,0.00019726,2]
[378656833,1754945456325,-460.0,0.00019726,2]
[378656834,1754945456334,-2639.28,0.00019726,2]
[378656835,1754945456344,-460.0,0.00019726,2]
[378656836,1754945456354,-627.31,0.00019726,2]
[378656837,1754945456363,-801.34,0.00019726,2]
[378656838,1754945456374,-643.34,0.00019726,2]
[378656839,1754945456384,-539.83,0.00019726,2]
[378656840,1754945456393,-460.0,0.00019726,2]
[378656841,1754945456403,-460.0,0.00019726,2]
[378656842,1754945456412,-460.0,0.00019726,2]
[378656843,1754945456422,-460.0,0.00019726,2]
[378656844,1754945456432,-460.0,0.00019726,2]
[378656845,1754945456441,-2717.82,0.00019726,2]
[378656846,1754945456451,-460.0,0.00019726,2]
[378656847,1754945456464,-460.0,0.00019726,2]
[378656848,1754945456476,-764.48,0.00019726,2]
[378656849,1754945456486,-791.25,0.00019726,2]
[378656850,1754945456496,-1854.86,0.00019726,2]
[378656851,1754945456506,-495.99,0.00019726,2]
[378656852,1754945456516,-1200.89,0.00019726,2]
[378656853,1754945456526,-1782.77,0.00019726,2]
[378656854,1754945456535,-4188.79,0.00019726,2]
[378656855,1754945456546,-460.0,0.00019726,2]
[378656856,1754945456557,-460.0,0.00019726,2]
[378656857,1754945456567,-1397.24,0.00019726,2]
[378656858,1754945456577,-460.0,0.00019726,2]
[378656859,1754945456586,-460.0,0.00019726,2]
[378656860,1754945456596,-1451.4,0.00019726,2]
[378656861,1754945456607,-460.0,0.00019726,2]
[378656862,1754945456618,-1669.42,0.00019726,2]
[378656863,1754945456629,-460.0,0.00019726,2]
[378656864,1754945456640,-1107.27,0.00019726,2]
[378656865,1754945456650,-460.0,0.00019726,2]
[378656866,1754945456660,-460.0,0.00019726,2]
[378656867,1754945456669,-151.0,0.00019726,2]
[378656868,1754945456679,-2462.72,0.00019726,2]
[378656869,1754945456690,-460.0,0.00019726,2]
[378656870,1754945456700,-506.37,0.00019726,2]
[378656871,1754945456712,-460.0,0.00019726,2]
[378656872,1754945456722,-1300.89,0.00019726,2]
[378656873,1754945456733,-460.0,0.00019726,2]
[378656874,1754945456742,-460.0,0.00019726,2]
[378656875,1754945456752,-5664.31,0.00019726,2]
[378656876,1754945456762,-460.0,0.00019726,2]
[378656877,1754945456772,-1572.07,0.00019726,2]
[378656878,1754945456782,-460.0,0.00019726,2]
[378656879,1754945456792,-6198.04,0.00019726,2]
[378656880,1754945456802,-460.0,0.00019726,2]
[378656881,1754945456812,-460.0,0.00019726,2]
[378656882,1754945456821,-460.0,0.00019726,2]
[378656883,1754945456832,-151.0,0.00019726,2]
[378656884,1754945456842,-460.0,0.00019726,2]
[378656885,1754945456852,-460.0,0.00019726,2]
[378656886,1754945456862,-151.0,0.00019726,2]
[378656887,1754945456872,-460.0,0.00019726,2]
[378656888,1754945456881,-1343.16,0.00019726,2]
[378656889,1754945456891,-460.0,0.00019726,2]
[378656890,1754945456905,-3255.13,0.00019726,2]
[378656891,1754945456916,-460.0,0.00019726,2]
[378656892,1754945456925,-762.57,0.00019726,2]
[378656893,1754945456935,-460.0,0.00019726,2]
[378656894,1754945456944,-460.0,0.00019726,2]
[378656895,1754945456954,-4269.65,0.00019726,2]
[378656896,1754945456963,-689.21,0.00019726,2]
[378656897,1754945456973,-151.0,0.00019726,2]
[378656898,1754945456983,-460.0,0.00019726,2]
[378656899,1754945456993,-460.0,0.00019726,2]
[378656900,1754945457003,-987.94,0.00019726,2]
[378656901,1754945457015,-460.0,0.00019726,2]
[378656902,1754945457025,-460.0,0.00019726,2]
[378656903,1754945457034,-460.0,0.00019726,2]
[378656904,1754945457045,-572.10605776,0.00019726,2]
[378656905,1754945457063,-1234.81,0.00019726,2]
[378656906,1754945457073,-460.0,0.00019726,2]
[378656907,1754945457083,-1018.29,0.00019726,2]
[378656908,1754945457093,-460.0,0.00019726,2]
[378656909,1754945457103,-460.0,0.00019726,2]
[378656910,1754945457112,-460.0,0.00019726,2]
[378656911,1754945457121,-460.0,0.00019726,2]
[378656912,1754945457131,-460.0,0.00019726,2]
[378656913,1754945457140,-460.0,0.00019726,2]
[378656914,1754945457150,-3791.29,0.00019726,2]
[378656915,1754945457164,-629.71,0.00019726,2]
[378656916,1754945457174,-498.39,0.00019726,2]
[378656917,1754945457183,-460.0,0.00019726,2]
[378656918,1754945457193,-1461.65,0.00019726,2]
[378656919,1754945457204,-460.0,0.00019726,2]
[378656920,1754945457214,-460.0,0.00019726,2]
[378656921,1754945457223,-460.0,0.00019726,2]
[378656922,1754945457234,-859.41,0.00019726,2]
[378656923,1754945457243,-460.0,0.00019726,2]
[378656924,1754945457253,-460.0,0.00019726,2]
[378656925,1754945457263,-722.96,0.00019726,2]
[378656926,1754945457272,-460.0,0.00019726,2]
[378656927,1754945457282,-1245.06,0.00019726,2]
[378656928,1754945457293,-460.0,0.00019726,2]
[378656929,1754945457303,-588.43152239,0.00019726,2]
[378656930,1754945457313,-722.65,0.00019726,2]
[378656931,1754945457323,-2335.86,0.00019726,2]
[378656932,1754945457333,-642.41,0.00019726,2]
[378656933,1754945457342,-1564.39,0.00019726,2]
[378656934,1754945457352,-922.85,0.00019726,2]
[378656935,1754945457362,-460.0,0.00019726,2]
[378656936,1754945457371,-460.0,0.00019726,2]
[378656937,1754945457381,-1365.86,0.00019726,2]
[378656938,1754945457391,-460.0,0.00019726,2]
[378656939,1754945457400,-460.0,0.00019726,2]
[378656940,1754945457410,-517.46906694,0.00019726,2]
[378656941,1754945457420,-460.0,0.00019726,2]
[378656942,1754945457430,-615.31,0.00019726,2]
[378656943,1754945457440,-460.0,0.00019726,2]
[378656944,1754945457450,-2861.59,0.00019726,2]
[378656945,1754945457459,-460.0,0.00019726,2]
[378656946,1754945457469,-460.0,0.00019726,2]
[378656947,1754945457479,-151.0,0.00019726,2]
[378656948,1754945457678,-701.7,0.00019726,2]
[378656949,1754945457689,-3796.2,0.00019726,2]
[378656950,1754945457700,-151.0,0.00019726,2]
[378656951,1754945457710,-460.0,0.00019726,2]
[378656952,1754945457721,-815.25,0.00019726,2]
[378656953,1754945457730,-460.0,0.00019726,2]
[378656954,1754945457740,-460.0,0.00019726,2]
[378656955,1754945457749,-1431.88,0.00019726,2]
[378656956,1754945457759,-460.0,0.00019726,2]
[378656957,1754945457771,-496.33,0.00019726,2]
[378656958,1754945457781,-151.0,0.00019726,2]
[378656959,1754945457791,-1072.08,0.00019726,2]
[378656960,1754945457801,-4499.32,0.00019726,2]
[378656961,1754945457810,-593.81,0.00019726,2]
[378656962,1754945457819,-2092.82,0.00019726,2]
[378656963,1754945457830,-460.0,0.00019726,2]
[378656964,1754945457840,-645.91,0.00019726,2]
[378656965,1754945457850,-460.0,0.00019726,2]
[378656966,1754945457859,-1533.85,0.00019726,2]
[378656967,1754945457868,-1591.33,0.00019726,2]
[378656968,1754945457878,-460.0,0.00019726,2]
[378656969,1754945457887,-460.0,0.00019726,2]
[378656970,1754945457897,-1056.75,0.00019726,2]
[378656971,1754945457907,-560.46,0.00019726,2]
[378656972,1754945457916,-460.0,0.00019726,2]
[378656973,1754945457926,-460.0,0.00019726,2]
[378656974,1754945457936,-460.0,0.00019726,2]
[378656975,1754945457945,-500.0,0.00019726,2]
[378656976,1754945457955,-646.0,0.00019769,2]
[378656977,1754945457964,-646.0,0.00019838,2]
[378656978,1754945457974,-646.0,0.00019849,2]
[378656979,1754945457983,-951.394147,0.00019863,2]
[378656980,1754945457992,-8068.16960751,0.000199,2]
[378656981,1754945458002,-33148.37828922,0.000199,2]
[378656982,1754945458011,-800.0,0.00019941,2]
[378656983,1754945458021,-800.0,0.00019943,2]
[378656984,1754945458030,-374.226769,0.00019972,2]
[378656985,1754945458039,-500.0,0.00019973,2]
[378656986,1754945458049,-150.0,0.00019973,2]
[378656987,1754945458058,-500.0,0.00019973,2]
[378656988,1754945458067,-500.0,0.00019973,2]
[378656989,1754945458077,-500.0,0.00019973,2]
[378656990,1754945458086,-500.0,0.00019973,2]
[378656991,1754945458096,-380.01458645,0.00019973,2]
[378656992,1754945458106,-507.53751155,0.00019973,2]
[378656993,1754945458115,-500.0,0.00019973,2]
[378656994,1754945458125,-281.08662514,0.00019973,2]
[378656995,1754945458134,-500.0,0.00019973,2]
[378656996,1754945458144,-500.0,0.00019973,2]
[378656997,1754945458156,-500.0,0.00019973,2]
[378656998,1754945458168,-535.9525052,0.00019973,2]
[378656999,1754945458178,-500.0,0.00019973,2]
[378657000,1754945458189,-158.46371259,0.00019973,2]
[378657001,1754945458199,-500.0,0.0002,2]
[378657002,1754945458210,-460.0,0.0002,2]
[378657003,1754945458221,-460.0,0.0002,2]
[378657004,1754945458231,-460.0,0.0002,2]
[378657005,1754945458240,-460.0,0.0002,2]
[378657006,1754945458250,-547.55,0.0002,2]
[378657007,1754945458259,-1330.2,0.0002,2]
[378657008,1754945458268,-460.0,0.0002,2]
[378657009,1754945458278,-296.586507,0.0002,2]
[378657010,1754945458287,-769.27,0.0002,2]
[378657011,1754945458296,-460.0,0.0002,2]
[378657012,1754945458308,-460.0,0.0002,2]
[378657013,1754945458317,-460.0,0.0002,2]
[378657014,1754945458327,-460.0,0.0002,2]
[378657015,1754945458336,-753.59,0.0002,2]
[378657016,1754945458345,-599.32646042,0.0002,2]
[378657017,1754945458355,-460.0,0.0002,2]
[378657018,1754945458364,-679.71,0.0002,2]
[378657019,1754945458373,-460.0,0.0002,2]
[378657020,1754945458383,-460.0,0.0002,2]
[378657021,1754945458392,-460.0,0.0002,2]
[378657022,1754945458402,-460.0,0.0002,2]
[378657023,1754945458412,-460.0,0.0002,2]
[378657024,1754945458421,-856.32,0.0002,2]
[378657025,1754945458430,-460.0,0.0002,2]
[378657026,1754945458439,-513.37,0.0002,2]
[378657027,1754945458449,-551.67,0.0002,2]
[378657028,1754945458458,-675.33,0.0002,2]
[378657029,1754945458467,-500.15,0.0002,2]
[378657030,1754945458476,-460.0,0.0002,2]
[378657031,1754945458486,-460.0,0.0002,2]
[378657032,1754945458495,-460.0,0.0002,2]
[378657033,1754945458504,-594.54,0.0002,2]
[378657034,1754945458514,-460.0,0.0002,2]
[378657035,1754945458523,-460.0,0.0002,2]
[378657036,1754945458532,-460.0,0.0002,2]
[378657037,1754945458542,-772.93,0.0002,2]
[378657038,1754945458551,-460.0,0.0002,2]
[378657039,1754945458560,-460.0,0.0002,2]
[378657040,1754945458570,-4603.73,0.0002,2]
[378657041,1754945458580,-460.0,0.0002,2]
[378657042,1754945458589,-460.0,0.0002,2]
[378657043,1754945458599,-460.0,0.0002,2]
[378657044,1754945458608,-3358.5,0.0002,2]
[378657045,1754945458617,-474.39,0.0002,2]
[378657046,1754945458627,-619.48,0.0002,2]
[378657047,1754945458636,-460.0,0.0002,2]
[378657048,1754945458645,-1123.35,0.0002,2]
[378657049,1754945458654,-460.0,0.0002,2]
[378657050,1754945458664,-460.0,0.0002,2]
[378657051,1754945458673,-553.92,0.0002,2]
[378657052,1754945458685,-460.0,0.0002,2]
[378657053,1754945458694,-460.0,0.0002,2]
[378657054,1754945458704,-2454.43,0.0002,2]
[378657055,1754945458716,-532.63,0.0002,2]
[378657056,1754945458726,-917.86,0.0002,2]
[378657057,1754945458735,-369.77651135,0.0002,2]
[378657058,1754945458744,-625.58,0.0002,2]
[378657059,1754945458753,-460.0,0.0002,2]
[378657060,1754945458762,-460.0,0.0002,2]
[378657061,1754945458771,-670.78,0.0002,2]
[378657062,1754945458780,-460.0,0.0002,2]
[378657063,1754945458790,-460.0,0.0002,2]
[378657064,1754945458799,-1595.07,0.0002,2]
[378657065,1754945458809,-460.0,0.0002,2]
[378657066,1754945458818,-460.0,0.0002,2]
[378657067,1754945458827,-1407.26,0.0002,2]
[378657068,1754945458836,-317.38831601,0.0002,2]
[378657069,1754945458845,-460.0,0.0002,2]
[378657070,1754945458855,-460.0,0.0002,2]
[378657071,1754945458864,-460.0,0.0002,2]
[378657072,1754945458873,-460.0,0.0002,2]
[378657073,1754945458882,-609.86,0.0002,2]
[378657074,1754945458891,-460.0,0.0002,2]
[378657075,1754945458900,-966.66,0.0002,2]
[378657076,1754945458910,-460.0,0.0002,2]
[378657077,1754945458919,-212.462381,0.0002,2]
[378657078,1754945458928,-460.0,0.0002,2]
[378657079,1754945458937,-212.462381,0.0002,2]
[378657080,1754945458946,-530.83,0.0002,2]
[378657081,1754945458956,-151.0,0.0002,2]
[378657082,1754945458965,-460.0,0.0002,2]
[378657083,1754945458975,-489.29534851,0.0002,2]
[378657084,1754945458984,-376.30944973,0.0002,2]
[378657085,1754945458993,-466.5,0.0002,2]
[378657086,1754945459003,-463.9,0.0002,2]
[378657087,1754945459012,-468.7,0.0002,2]
[378657088,1754945459021,-547.26,0.0002,2]
[378657089,1754945459031,-536.01,0.0002,2]
[378657090,1754945459040,-460.0,0.0002,2]
[378657091,1754945459049,-647.57,0.0002,2]
[378657092,1754945459058,-460.0,0.0002,2]
[378657093,1754945459067,-460.0,0.0002,2]
[378657094,1754945459076,-460.0,0.0002,2]
[378657095,1754945459085,-1769.16,0.0002,2]
[378657096,1754945459094,-460.0,0.0002,2]
[378657097,1754945459103,-681.77,0.0002,2]
[378657098,1754945459113,-460.0,0.0002,2]
[378657099,1754945459121,-460.0,0.0002,2]
[378657100,1754945459131,-460.0,0.0002,2]
[378657101,1754945459140,-888.35,0.0002,2]
[378657102,1754945459149,-453.58456652,0.0002,2]
[378657103,1754945459162,-2167.58,0.0002,2]
[378657104,1754945459172,-460.0,0.0002,2]
[378657105,1754945459181,-977.15,0.0002,2]
[378657106,1754945459190,-944.5,0.0002,2]
[378657107,1754945459201,-460.0,0.0002,2]
[378657108,1754945459210,-460.0,0.0002,2]
[378657109,1754945459219,-460.0,0.0002,2]
[378657110,1754945459228,-553.25,0.0002,2]
[378657111,1754945459237,-757.42,0.0002,2]
[378657112,1754945459246,-574.21,0.0002,2]
[378657113,1754945459255,-460.0,0.0002,2]
[378657114,1754945459264,-151.0,0.0002,2]
[378657115,1754945459273,-460.0,0.0002,2]
[378657116,1754945459282,-837.36,0.0002,2]
[378657117,1754945459292,-1047.5,0.0002,2]
[378657118,1754945459301,-460.0,0.0002,2]
[378657119,1754945459311,-460.0,0.0002,2]
[378657120,1754945459321,-460.0,0.0002,2]
[378657121,1754945459330,-151.0,0.0002,2]
[378657122,1754945459339,-460.0,0.0002,2]
[378657123,1754945459348,-1818.61,0.0002,2]
[378657124,1754945459357,-461.54,0.0002,2]
[378657125,1754945459367,-460.0,0.0002,2]
[378657126,1754945459376,-1104.61,0.0002,2]
[378657127,1754945459385,-1336.85,0.0002,2]
[378657128,1754945459394,-460.0,0.0002,2]
[378657129,1754945459404,-460.0,0.0002,2]
[378657130,1754945459414,-460.0,0.0002,2]
[378657131,1754945459424,-151.0,0.0002,2]
[378657132,1754945459434,-3284.18,0.0002,2]
[378657133,1754945459443,-1186.11,0.0002,2]
[378657134,1754945459452,-1266.67,0.0002,2]
[378657135,1754945459462,-460.0,0.0002,2]
[378657136,1754945459471,-675.57,0.0002,2]
[378657137,1754945459481,-460.0,0.0002,2]
[378657138,1754945459490,-151.0,0.0002,2]
[378657139,1754945459500,-460.0,0.0002,2]
[378657140,1754945459510,-596.19,0.0002,2]
[378657141,1754945459520,-151.87783316,0.0002,2]
[378657142,1754945459529,-500.0,0.0002,2]
[378657143,1754945459538,-460.0,0.0002,2]
[378657144,1754945459548,-500.0,0.0002,2]
[378657145,1754945459557,-460.0,0.0002,2]
[378657146,1754945459568,-500.0,0.0002,2]
[378657147,1754945459579,-460.0,0.0002,2]
[378657148,1754945459588,-460.0,0.0002,2]
[378657149,1754945459597,-151.0,0.0002,2]
[378657150,1754945459607,-500.0,0.0002,2]
[378657151,1754945459616,-151.0,0.0002,2]
[378657152,1754945459626,-1000.0,0.0002,2]
[378657153,1754945459635,-460.0,0.0002,2]
[378657154,1754945459644,-1000.0,0.0002,2]
[378657155,1754945459654,-151.0,0.0002,2]
[378657156,1754945459664,-1000.0,0.0002,2]
[378657157,1754945459673,-1000.0,0.0002,2]
[378657158,1754945459682,-1000.0,0.0002,2]
[378657159,1754945459691,-1000.0,0.0002,2]
[378657160,1754945459701,-1000.0,0.0002,2]
[378657161,1754945459714,-151.0,0.0002,2]
[378657162,1754945459724,-460.0,0.0002,2]
[378657163,1754945459735,-151.0,0.0002,2]
[378657164,1754945459744,-460.0,0.0002,2]
[378657165,1754945459753,-460.0,0.0002,2]
[378657166,1754945459762,-460.0,0.0002,2]
[378657167,1754945459772,-814.02,0.0002,2]
[378657168,1754945459781,-460.0,0.0002,2]
[378657169,1754945459791,-705.17,0.0002,2]
[378657170,1754945459800,-460.0,0.0002,2]
[378657171,1754945459810,-460.0,0.0002,2]
[378657172,1754945459819,-151.0,0.0002,2]
[378657173,1754945459828,-663.06,0.0002,2]
[378657174,1754945459837,-151.0,0.0002,2]
[378657175,1754945459847,-151.0,0.0002,2]
[378657176,1754945459856,-151.0,0.0002,2]
[378657177,1754945459866,-151.0,0.0002,2]
[378657178,1754945459875,-460.0,0.0002,2]
[378657179,1754945459884,-500.0,0.0002,2]
[378657180,1754945459894,-2639.28,0.0002,2]
[378657181,1754945459903,-460.0,0.0002,2]
[378657182,1754945459914,-627.31,0.0002,2]